lending/lending_fUSD_20250318
["ID","MTS","AMOUNT","RATE_DAILY","PERIOD"]
[356326334,1742282606968,-167.73673983,8.903e-05,2]
[356326335,1742282610998,-150.0,8.903e-05,2]
[356326336,1742282627446,-237.84910129,8.903e-05,2]
[356326337,1742282633811,-230.58829871,8.903e-05,2]
[356326338,1742282640443,1429.22,8.857e-05,2]
[356326339,1742282642668,-150.0,8.903e-05,2]
[356326340,1742282660919,1535.93,8.219e-05,2]
[356326341,1742282689250,-71.74586017,8.903e-05,2]
[356326342,1742282689275,-150.0,8.915e-05,2]
[356326343,1742282689302,-16.10324112,8.927e-05,2]
[356326344,1742282704042,-300.0,8.927e-05,2]
[356326345,1742282726736,1448.0,8.513e-05,2]
[356326346,1742282729528,-227.93799871,8.927e-05,2]
[356326349,1742282788888,-463.87876017,8.927e-05,2]
[356326350,1742282788917,-865.89393983,8.95e-05,2]
[356326353,1742282866943,-142.02606017,8.95e-05,2]
[356326354,1742282866972,-126.44323983,8.973e-05,2]
[356326355,1742282875531,270.66778951,8e-05,2]
[356326356,1742282882861,-300.0,8.973e-05,2]
[356326358,1742282887235,-541.75813983,8.973e-05,2]
[356326359,1742282913155,-39.71862034,8.973e-05,2]
[356326360,1742282913201,-228.75067966,8.997e-05,2]
[356326361,1742282914439,-174.82413306,8.997e-05,2]
[356326362,1742282936660,-604.34518728,8.997e-05,2]
[356326363,1742282936690,-311.44191272,9.02e-05,2]
[356326368,1742282993327,250.0,8.854e-05,2]
[356326372,1742283002536,-696.47808728,9.02e-05,2]
[356326373,1742283002563,-140.32061272,9.043e-05,2]
[356326374,1742283030075,-150.0,9.043e-05,2]
[356326379,1742283031696,-717.59938728,9.043e-05,2]
[356326381,1742283031706,-1007.92,9.067e-05,2]
[356326383,1742283031719,-108.53480725,9.09e-05,2]
[356326385,1742283031731,-730.99064558,9.09e-05,2]
[356326386,1742283031859,-168.39454717,9.09e-05,2]
[356326387,1742283031869,-1007.92,9.113e-05,2]
[356326388,1742283031879,-1007.92,9.137e-05,2]
[356326389,1742283031889,-1007.92,9.16e-05,2]
[356326390,1742283031899,-1007.92,9.183e-05,2]
[356326391,1742283031909,-1007.92,9.207e-05,2]
[356326392,1742283031918,-838.35723593,9.23e-05,2]
[356326393,1742283031930,-169.56276407,9.23e-05,2]
[356326394,1742283031940,-300.0,9.252e-05,2]
[356326395,1742283031949,-397.23,9.252e-05,2]
[356326396,1742283031959,-958.8160988,9.253e-05,2]
[356326397,1742283031976,-49.1039012,9.253e-05,2]
[356326398,1742283031984,-603.36248516,9.276e-05,2]
[356326420,1742283040380,-0.01895515,9.276e-05,2]
[356326423,1742283040898,-404.53855969,9.276e-05,2]
[356326424,1742283040909,-1007.92,9.3e-05,2]
[356326425,1742283040919,-262.87224484,9.356e-05,2]
[356326426,1742283040932,-555.44755516,9.356e-05,2]
[356326427,1742283040942,-268.4693,9.356e-05,2]
[356326428,1742283040952,-270.08314484,9.356e-05,2]
[356326429,1742283040972,-645.70395516,9.356e-05,2]
[356326430,1742283040983,-945.8996,9.356e-05,2]
[356326431,1742283040993,-3498.5549,9.356e-05,2]
[356326432,1742283041003,-181.7245,9.356e-05,2]
[356326433,1742283041012,-317.7368,9.356e-05,2]
[356326434,1742283041022,-150.0,9.455e-05,2]
[356326435,1742283041032,-14637.61295586,9.456e-05,2]
[356326436,1742283041044,-4968357.34428076,9.456e-05,2]
[356326437,1742283041056,-234941.805,9.456e-05,2]
[356326438,1742283041068,-1476.29675264,9.456e-05,2]
[356326439,1742283041079,-2090.40897658,9.456e-05,2]
[356326440,1742283041095,-43408.73692137,9.456e-05,2]
[356326441,1742283041109,-1728.77262585,9.456e-05,2]
[356326442,1742283041120,-493.98587737,9.456e-05,2]
[356326443,1742283041132,-372.50946649,9.456e-05,2]
[356326444,1742283041148,-2101.90480967,9.456e-05,2]
[356326445,1742283041159,-5837.0,9.456e-05,2]
[356326446,1742283041170,-362.71363416,9.456e-05,2]
[356326447,1742283041181,-2771.46965689,9.456e-05,2]
[356326448,1742283041192,-274.0678114,9.456e-05,2]
[356326449,1742283041203,-1152.76500002,9.456e-05,2]
[356326450,1742283041214,-89899.16276276,9.456e-05,2]
[356326462,1742283042784,-457.46955249,9.356e-05,2]
[356326463,1742283042910,-384.28854751,9.356e-05,2]
[356326464,1742283042920,-10089.40147584,9.456e-05,2]
[356326465,1742283043050,-13822.88180741,9.456e-05,2]
[356326466,1742283043062,-2137.81251286,9.456e-05,2]
[356326467,1742283043074,-254.39513532,9.456e-05,2]
[356326468,1742283043811,-46222.56417382,9.456e-05,2]
[356326475,1742283045795,-9954.62835554,9.456e-05,2]
[356326476,1742283046151,-186797.41565239,9.456e-05,2]
[356326477,1742283046162,-608.83533071,9.456e-05,2]
[356326478,1742283046187,-2079.97198649,9.456e-05,2]
[356326483,1742283069776,200.0,8.791e-05,2]
[356326484,1742283123474,-295.629286,9.3e-05,2]
[356326485,1742283123501,-147.680714,9.356e-05,2]
[356326486,1742283132064,316.13646256,0.000105,3]
[356326489,1742283170686,-293.28535622,9.172e-05,2]
[356326492,1742283202547,301.02,8.78e-05,2]
[356326493,1742283212708,-293.28535622,9.172e-05,2]
[356326494,1742283233904,267.54,8.85e-05,2]
[356326495,1742283235218,-1000.0,9.172e-05,2]
[356326497,1742283245017,-5000.0,0.000213,37]
[356326498,1742283259567,-293.28535622,9.172e-05,2]
[356326499,1742283302782,-293.28535622,9.172e-05,2]
[356326502,1742283349784,-293.28535622,9.172e-05,2]
[356326503,1742283393679,-293.28535622,9.172e-05,2]
[356326504,1742283439847,210.77221049,8.765e-05,2]
[356326505,1742283439873,158.49778951,8.765e-05,2]
[356326506,1742283440495,158.49778951,8.765e-05,2]
[356326507,1742283447019,2000.0,8.772e-05,2]
[356326508,1742283488095,-293.28535622,9.172e-05,2]
[356326509,1742283529473,-150.99,9.039e-05,2]
[356326510,1742283529497,-142.29535622,9.172e-05,2]
[356326511,1742283560696,168.18,8.747e-05,2]
[356326512,1742283566840,331.88,8.741e-05,2]
[356326513,1742283620187,23900.0,8.738e-05,2]
[356326514,1742283753989,1000.0,8.728e-05,2]
[356326515,1742283772391,202.42,8.731e-05,2]
[356326516,1742283777395,1734.03,8.219e-05,2]
[356326520,1742283896050,179.86,8.854e-05,2]
[356326526,1742284207905,-811.6199542,9.172e-05,2]
[356326527,1742284207932,-1235.0,9.2e-05,2]
[356326528,1742284207959,-150.0,9.315e-05,2]
[356326529,1742284207985,-150.99,9.338e-05,2]
[356326530,1742284208017,-295.612686,9.356e-05,2]
[356326531,1742284208045,-1329.7727,9.356e-05,2]
[356326532,1742284208074,-468.4374,9.356e-05,2]
[356326533,1742284208101,-1752.5858,9.356e-05,2]
[356326534,1742284208127,-593.31,9.356e-05,2]
[356326535,1742284208154,-300.0,9.356e-05,2]
[356326536,1742284208180,-150.0,9.432e-05,2]
[356326537,1742284208205,-163.25071235,9.433e-05,2]
[356326538,1742284208231,-152.15190761,9.433e-05,2]
[356326539,1742284208255,-153.34779853,9.433e-05,2]
[356326540,1742284208280,-501.73760839,9.433e-05,2]
[356326541,1742284208305,-475.65149818,9.433e-05,2]
[356326542,1742284208332,-29249.67120945,9.433e-05,2]
[356326543,1742284208356,-152.43078074,9.455e-05,2]
[356326544,1742284208383,-71914.42994455,9.456e-05,2]
[356326545,1742284218160,1600.0,8.853e-05,2]
[356326546,1742284228766,-308.611786,9.433e-05,2]
[356326547,1742284228791,-180.79598307,9.433e-05,2]
[356326548,1742284228818,-39510.59223093,9.456e-05,2]
[356326553,1742284238028,-798.41548787,9.456e-05,2]
[356326559,1742284241837,-17000.0,9.456e-05,2]
[356326560,1742284241849,-107449.94908934,9.456e-05,2]
[356326561,1742284241860,-6356.52696826,9.456e-05,2]
[356326562,1742284241870,-999.99,9.456e-05,2]
[356326563,1742284241880,-961.54944756,9.456e-05,2]
[356326564,1742284241890,-423.75375727,9.464e-05,2]
[356326565,1742284241899,-266.81470385,9.464e-05,2]
[356326566,1742284241910,-255.60813901,9.464e-05,2]
[356326567,1742284241921,-500.0,9.464e-05,2]
[356326568,1742284241930,-500.0,9.464e-05,2]
[356326569,1742284241940,-500.0,9.464e-05,2]
[356326570,1742284241950,-500.0,9.464e-05,2]
[356326571,1742284241959,-500.0,9.464e-05,2]
[356326572,1742284241969,-500.0,9.464e-05,2]
[356326573,1742284241979,-500.0,9.464e-05,2]
[356326574,1742284241989,-500.0,9.464e-05,2]
[356326575,1742284241999,-500.0,9.464e-05,2]
[356326576,1742284242009,-500.0,9.464e-05,2]
[356326577,1742284242018,-500.0,9.464e-05,2]
[356326578,1742284242028,-4372.42,9.465e-05,2]
[356326579,1742284242037,-150.99,9.465e-05,2]
[356326580,1742284242047,-7882.19,9.465e-05,2]
[356326581,1742284242058,-277.86,9.465e-05,2]
[356326582,1742284242067,-642.97,9.465e-05,2]
[356326583,1742284242077,-3186.08,9.465e-05,2]
[356326584,1742284242087,-242.64,9.465e-05,2]
[356326585,1742284242097,-299.99,9.465e-05,2]
[356326586,1742284242106,-4590.07073271,9.465e-05,2]
[356326640,1742284244907,-250.0,9e-05,2]
[356326641,1742284244917,-2451.62926729,9.465e-05,2]
[356326642,1742284244927,-12639.60172654,9.465e-05,2]
[356326643,1742284244936,-961.54944753,9.565e-05,2]
[356326644,1742284244945,-168.18,9.621e-05,2]
[356326645,1742284244954,-150.99,9.636e-05,2]
[356326646,1742284244964,-961.54944753,9.674e-05,2]
[356326647,1742284244973,-3792.61995178,9.7e-05,2]
[356326648,1742284244982,-9566.8,9.7e-05,2]
[356326649,1742284244991,-30353.92,9.7e-05,2]
[356326650,1742284245001,-9218.04,9.702e-05,2]
[356326651,1742284245010,-150.99,9.702e-05,2]
[356326653,1742284245019,-440.01738232,9.71e-05,2]
[356326654,1742284245029,-166.66,9.721e-05,2]
[356326655,1742284245038,-424.49589545,9.752e-05,2]
[356326656,1742284245047,-177.806618,9.752e-05,2]
[356326657,1742284245056,-961.54944753,9.782e-05,2]
[356326658,1742284245066,-798.79,9.791e-05,2]
[356326659,1742284245075,-150.0,9.794e-05,2]
[356326660,1742284245085,-805.02654281,9.8e-05,2]
[356326661,1742284245095,-1000.0,9.819e-05,2]
[356326662,1742284245105,-2567.659,9.859e-05,2]
[356326663,1742284245115,-1000.0,9.863e-05,2]
[356326664,1742284245124,-1000.0,9.863e-05,2]
[356326665,1742284245133,-1000.0,9.863e-05,2]
[356326666,1742284245143,-1000.0,9.863e-05,2]
[356326667,1742284245152,-1000.0,9.863e-05,2]
[356326668,1742284245162,-1000.0,9.863e-05,2]
[356326669,1742284245171,-1000.0,9.863e-05,2]
[356326670,1742284245180,-1000.0,9.863e-05,2]
[356326671,1742284245190,-1000.0,9.863e-05,2]
[356326672,1742284245199,-1000.0,9.863e-05,2]
[356326673,1742284245208,-1000.0,9.863e-05,2]
[356326674,1742284245217,-1000.0,9.863e-05,2]
[356326675,1742284245226,-1000.0,9.863e-05,2]
[356326676,1742284245235,-1000.0,9.863e-05,2]
[356326677,1742284245244,-1000.0,9.863e-05,2]
[356326678,1742284245254,-1000.0,9.863e-05,2]
[356326679,1742284245263,-1000.0,9.863e-05,2]
[356326680,1742284245272,-1000.0,9.863e-05,2]
[356326681,1742284245282,-1000.0,9.863e-05,2]
[356326682,1742284245292,-1000.0,9.863e-05,2]
[356326683,1742284245301,-1000.0,9.863e-05,2]
[356326684,1742284245310,-1000.0,9.863e-05,2]
[356326685,1742284245320,-1000.0,9.863e-05,2]
[356326686,1742284245330,-1000.0,9.863e-05,2]
[356326687,1742284245344,-1000.0,9.863e-05,2]
[356326688,1742284245354,-1000.0,9.863e-05,2]
[356326689,1742284245363,-1000.0,9.863e-05,2]
[356326690,1742284245372,-1000.0,9.863e-05,2]
[356326691,1742284245382,-1000.0,9.863e-05,2]
[356326692,1742284245392,-1000.0,9.863e-05,2]
[356326693,1742284245401,-1000.0,9.863e-05,2]
[356326694,1742284245411,-1000.0,9.863e-05,2]
[356326695,1742284245422,-1000.0,9.863e-05,2]
[356326696,1742284245434,-1000.0,9.863e-05,2]
[356326697,1742284245444,-951.0,9.863e-05,2]
[356326698,1742284245454,-1000.0,9.863e-05,2]
[356326699,1742284245463,-1000.0,9.863e-05,2]
[356326700,1742284245473,-1000.0,9.863e-05,2]
[356326701,1742284245482,-1000.0,9.863e-05,2]
[356326702,1742284245492,-1000.0,9.863e-05,2]
[356326703,1742284245501,-1000.0,9.863e-05,2]
[356326704,1742284245512,-1000.0,9.863e-05,2]
[356326705,1742284245522,-150.0,9.875e-05,2]
[356326706,1742284245531,-2034.0,9.881e-05,2]
[356326707,1742284245541,-1280.0,9.881e-05,2]
[356326708,1742284245550,-1419.0,9.881e-05,2]
[356326709,1742284245560,-571.0,9.881e-05,2]
[356326710,1742284245569,-641.0,9.881e-05,2]
[356326711,1742284245579,-787.0,9.881e-05,2]
[356326712,1742284245589,-907.0,9.881e-05,2]
[356326713,1742284245599,-1271.0,9.881e-05,2]
[356326714,1742284245608,-4081.0,9.881e-05,2]
[356326715,1742284245618,-1429.0,9.881e-05,2]
[356326716,1742284245627,-543.767,9.881e-05,2]
[356326717,1742284245637,-150.0,9.881e-05,2]
[356326718,1742284245646,-1013.0,9.881e-05,2]
[356326719,1742284245655,-3936.0,9.881e-05,2]
[356326720,1742284245665,-151.0,9.881e-05,2]
[356326721,1742284245674,-1114.0,9.881e-05,2]
[356326722,1742284245684,-961.54944753,9.891e-05,2]
[356326723,1742284245694,-5000.0,9.9e-05,2]
[356326724,1742284245703,-171285.5740097,9.9e-05,2]
[356326726,1742284246073,-5376.71397202,9.9e-05,2]
[356326727,1742284246147,-46788.8721901,9.9e-05,2]
[356326728,1742284246157,-151.0,9.9e-05,2]
[356326729,1742284246168,-156.390313,9.9e-05,2]
[356326730,1742284246178,-805.02654281,9.9e-05,2]
[356326731,1742284246333,-500.0,9.9e-05,2]
[356326732,1742284246353,-150.0,9.923e-05,2]
[356326733,1742284246365,-500.0,9.927e-05,2]
[356326734,1742284246375,-150.99,9.934e-05,2]
[356326735,1742284246384,-500.0,9.954e-05,2]
[356326736,1742284246393,-1600.0,9.959e-05,2]
[356326737,1742284246403,-424.49589545,9.963e-05,2]
[356326738,1742284246413,-500.0,9.982e-05,2]
[356326739,1742284246423,-701.0,9.999e-05,2]
[356326740,1742284246432,-302.63943531,0.0001,2]
[356326741,1742284246442,-388789.96396538,0.0001,2]
[356326742,1742284246451,-203.9,0.0001,2]
[356326743,1742284246461,-201045.90069571,0.0001,2]
[356326744,1742284246470,-2664071.80450121,0.0001,2]
[356326745,1742284246489,-6559.68197209,0.0001,2]
[356326746,1742284246516,-1698.86742684,0.0001,2]
[356326747,1742284246527,-4166.8892856,0.0001,2]
[356326748,1742284246539,-56100.0000002,0.0001,2]
[356326749,1742284329562,250.0,8.854e-05,2]
[356326751,1742284467565,184.63,8.854e-05,2]
[356326757,1742284807912,190.06,0.000219,120]
[356326760,1742284809594,1977.2,8.219e-05,2]
[356326764,1742284836121,1000.0,8.854e-05,2]
[356326765,1742284857098,1000.0,9.2e-05,3]
[356326766,1742284859187,2100.0,9.3e-05,3]
[356326767,1742284861281,3100.0,9.4e-05,3]
[356326768,1742284863373,4200.0,9.5e-05,3]
[356326770,1742284865455,5300.0,9.6e-05,3]
[356326771,1742284867647,1000.0,9.7e-05,3]
[356326772,1742284869733,1000.0,9.8e-05,3]
[356326773,1742284871801,1000.0,9.9e-05,3]
[356326774,1742284873893,1000.0,0.0001,3]
[356326779,1742284941538,422.40333809,0.0001,120]
[356326780,1742284947340,422.40333809,0.00015,120]
[356326781,1742284952678,422.40333809,0.0002,120]
[356326782,1742284957298,542.68,8.854e-05,2]
[356326783,1742284957509,542.68,8.877e-05,2]
[356326784,1742284957727,542.68,8.9e-05,2]
[356326785,1742284984206,-209.57745514,8.924e-05,2]
[356326786,1742284990519,-241.8265,8.924e-05,2]
[356326787,1742285006331,153.702285,8.879e-05,2]
[356326791,1742285043278,-91.27604486,8.924e-05,2]
[356326792,1742285043329,-181.09745514,8.947e-05,2]
[356326795,1742285079132,-227.6265,8.947e-05,2]
[356326796,1742285086598,-133.95604486,8.947e-05,2]
[356326797,1742285086651,-16.04395514,8.97e-05,2]
[356326798,1742285097870,-150.0,8.97e-05,2]
[356326800,1742285124853,2309.94,8.733e-05,2]
[356326801,1742285138857,1012.56454583,0.00019,30]
[356326802,1742285161228,-300.0,8.97e-05,2]
[356326803,1742285168707,-76.63604486,8.97e-05,2]
[356326804,1742285168758,-173.36395514,8.971e-05,2]
[356326806,1742285187331,1768.799,8.897e-05,2]
[356326807,1742285196147,100320.1355,8.897e-05,2]
[356326808,1742285212097,640.0,8.739e-05,2]
[356326809,1742285222597,-76.63604486,8.971e-05,2]
[356326810,1742285222647,-423.36395514,8.993e-05,2]
[356326811,1742285225371,-119.31604486,8.993e-05,2]
[356326812,1742285225424,-150.0,8.995e-05,2]
[356326813,1742285225472,-230.68395514,8.995e-05,2]
[356326814,1742285232295,167.99,8.741e-05,2]
[356326815,1742285294526,1435.5968,8.897e-05,2]
[356326816,1742285334497,6318.6695,8.897e-05,2]
[356326817,1742285340983,250.0,8.732e-05,2]
[356326818,1742285347639,36416.8914,8.897e-05,2]
[356326819,1742285355643,-1579.63621602,8.987e-05,2]
[356326820,1742285355673,-250.0,8.991e-05,2]
[356326821,1742285355703,-7.84096454,8.995e-05,2]
[356326822,1742285399577,2169.0743,8.897e-05,2]
[356326828,1742285410861,1000.0,8.897e-05,2]
[356326847,1742285432063,-142.15903546,8.995e-05,2]
[356326849,1742285432073,-300.0,8.995e-05,2]
[356326851,1742285432083,-500.0,8.996e-05,2]
[356326853,1742285432093,-500.0,8.996e-05,2]
[356326855,1742285432102,-318.37940659,8.996e-05,2]
[356326857,1742285432112,-500.0,8.996e-05,2]
[356326859,1742285432121,-500.0,8.996e-05,2]
[356326861,1742285432131,-429.41227544,8.996e-05,2]
[356326863,1742285432140,-500.0,8.996e-05,2]
[356326865,1742285432150,-239.43111274,8.996e-05,2]
[356326868,1742285432160,-227.66544211,8.996e-05,2]
[356326870,1742285432170,-500.0,8.996e-05,2]
[356326872,1742285432179,-363.05195444,8.996e-05,2]
[356326874,1742285432189,-472.67619578,8.996e-05,2]
[356326876,1742285432199,-207.24149599,8.996e-05,2]
[356326878,1742285432209,-500.0,8.996e-05,2]
[356326880,1742285432219,-500.0,8.996e-05,2]
[356326882,1742285432228,-500.0,8.996e-05,2]
[356326884,1742285432238,-500.0,8.996e-05,2]
[356326886,1742285432248,-500.0,8.996e-05,2]
[356326888,1742285432257,-500.0,8.996e-05,2]
[356326890,1742285432267,-500.0,8.996e-05,2]
[356326892,1742285432277,-500.0,8.996e-05,2]
[356326894,1742285432287,-500.0,8.996e-05,2]
[356326896,1742285432297,-500.0,8.996e-05,2]
[356326897,1742285432307,-500.0,8.996e-05,2]
[356326898,1742285432317,-500.0,8.996e-05,2]
[356326899,1742285432327,-500.0,8.996e-05,2]
[356326900,1742285432337,-500.0,8.996e-05,2]
[356326901,1742285432346,-296.70562401,8.996e-05,2]
[356326902,1742285432355,-500.0,8.996e-05,2]
[356326903,1742285432365,-500.0,8.996e-05,2]
[356326904,1742285432374,-500.0,8.996e-05,2]
[356326905,1742285432384,-500.0,8.996e-05,2]
[356326906,1742285432393,-500.0,8.996e-05,2]
[356326907,1742285432403,-47449.8768527,8.997e-05,2]
[356326908,1742285432412,-594044.213345,8.997e-05,2]
[356326909,1742285432422,-2158.9873099,9e-05,2]
[356326911,1742285432431,-542.68,9.017e-05,2]
[356326912,1742285432441,-702.58606129,9.017e-05,2]
[356326915,1742285432450,-542.68,9.04e-05,2]
[356326917,1742285432462,-18801.46,9.043e-05,2]
[356326919,1742285432471,-542.68,9.063e-05,2]
[356326921,1742285432481,-2000.0,9.086e-05,2]
[356326923,1742285432491,-163.86,9.086e-05,2]
[356326925,1742285432502,-299.99,9.086e-05,2]
[356326927,1742285432511,-542.68,9.087e-05,2]
[356326929,1742285432521,-542.68,9.11e-05,2]
[356326931,1742285432530,-200.0,9.114e-05,2]
[356326933,1742285432539,-171.66,9.119e-05,2]
[356326935,1742285432549,-3853.8557,9.123e-05,2]
[356326937,1742285432558,-542.68,9.133e-05,2]
[356326939,1742285432568,-542.68,9.157e-05,2]
[356326940,1742285432578,-542.68,9.18e-05,2]
[356326942,1742285432588,-542.68,9.203e-05,2]
[356326944,1742285432597,-702.58606128,9.214e-05,2]
[356326947,1742285432609,-542.68,9.226e-05,2]
[356326949,1742285432619,-542.68,9.25e-05,2]
[356326951,1742285432630,-542.68,9.273e-05,2]
[356326953,1742285432639,-542.68,9.296e-05,2]
[356326955,1742285432648,-185.94,9.301e-05,2]
[356326957,1742285432658,-702.58606128,9.41e-05,2]
[356326959,1742285432668,-702.58606128,9.607e-05,2]
[356326961,1742285432677,-9404.41,9.67e-05,2]
[356326963,1742285432687,-777.2833032,9.7e-05,2]
[356326965,1742285432697,-1236.0,9.7e-05,2]
[356326967,1742285432706,-150.0,9.732e-05,2]
[356326969,1742285432717,-150.0,9.737e-05,2]
[356326971,1742285432729,-150.0,9.742e-05,2]
[356326973,1742285432739,-150.0,9.748e-05,2]
[356326975,1742285432748,-150.0,9.752e-05,2]
[356326977,1742285432759,-150.0,9.752e-05,2]
[356326979,1742285432768,-150.0,9.752e-05,2]
[356326981,1742285432777,-2034.0,9.758e-05,2]
[356326982,1742285432786,-150.0,9.76e-05,2]
[356326984,1742285432797,-150.0,9.765e-05,2]
[356326986,1742285432807,-150.0,9.766e-05,2]
[356326989,1742285432817,-150.0,9.768e-05,2]
[356326990,1742285432827,-150.0,9.774e-05,2]
[356326992,1742285432836,-150.0,9.774e-05,2]
[356326994,1742285432846,-150.0,9.784e-05,2]
[356326996,1742285432855,-150.0,9.784e-05,2]
[356326998,1742285432864,-150.0,9.789e-05,2]
[356327000,1742285432874,-150.0,9.79e-05,2]
[356327002,1742285432883,-150.0,9.792e-05,2]
[356327004,1742285432893,-150.0,9.792e-05,2]
[356327007,1742285432903,-150.0,9.793e-05,2]
[356327008,1742285432913,-150.0,9.794e-05,2]
[356327010,1742285432922,-150.0,9.796e-05,2]
[356327012,1742285432932,-1096.00672398,9.8e-05,2]
[356327014,1742285432941,-1059.47928825,9.8e-05,2]
[356327016,1742285432951,-1132.94334058,9.8e-05,2]
[356327018,1742285432960,-150.0,9.802e-05,2]
[356327020,1742285432970,-702.58606128,9.803e-05,2]
[356327022,1742285432980,-150.0,9.812e-05,2]
[356327024,1742285432989,-150.0,9.813e-05,2]
[356327026,1742285432999,-150.0,9.819e-05,2]
[356327028,1742285433009,-150.0,9.82e-05,2]
[356327030,1742285433019,-711.265,9.821e-05,2]
[356327032,1742285433029,-641.0,9.821e-05,2]
[356327034,1742285433039,-1419.0,9.821e-05,2]
[356327036,1742285433050,-787.0,9.821e-05,2]
[356327038,1742285433059,-4081.0,9.821e-05,2]
[356327040,1742285433070,-1429.0,9.821e-05,2]
[356327042,1742285433082,-907.0,9.821e-05,2]
[356327044,1742285433092,-1271.0,9.821e-05,2]
[356327046,1742285433102,-541.0,9.821e-05,2]
[356327048,1742285433112,-150.0,9.823e-05,2]
[356327050,1742285433121,-150.0,9.825e-05,2]
[356327052,1742285433131,-640.0,9.831e-05,2]
[356327054,1742285433140,-167.99,9.834e-05,2]
[356327056,1742285433150,-150.0,9.834e-05,2]
[356327058,1742285433160,-3936.0,9.835e-05,2]
[356327060,1742285433169,-1013.0,9.835e-05,2]
[356327062,1742285433179,-151.0,9.835e-05,2]
[356327064,1742285433189,-150.0,9.839e-05,2]
[356327066,1742285433198,-150.0,9.842e-05,2]
[356327068,1742285433208,-150.0,9.846e-05,2]
[356327070,1742285433219,-150.0,9.853e-05,2]
[356327072,1742285433228,-150.0,9.867e-05,2]
[356327074,1742285433238,-250.0,9.867e-05,2]
[356327076,1742285433248,-223.3154,9.873e-05,2]
[356327078,1742285433258,-560.3139,9.873e-05,2]
[356327080,1742285433267,-5000.0,9.873e-05,2]
[356327082,1742285433277,-150.0,9.875e-05,2]
[356327084,1742285433287,-150.0,9.876e-05,2]
[356327086,1742285433296,-150.0,9.877e-05,2]
[356327088,1742285433306,-250.0,9.877e-05,2]
[356327090,1742285433316,-150.0,9.879e-05,2]
[356327092,1742285433326,-150.0,9.88e-05,2]
[356327094,1742285433336,-250.0,9.886e-05,2]
[356327096,1742285433346,-150.0,9.888e-05,2]
[356327098,1742285433356,-150.0,9.893e-05,2]
[356327100,1742285433366,-250.0,9.895e-05,2]
[356327102,1742285433375,-255.0,9.895e-05,2]
[356327104,1742285433386,-420.0,9.895e-05,2]
[356327106,1742285433396,-150.0,9.898e-05,2]
[356327108,1742285433406,-150.0,9.898e-05,2]
[356327110,1742285433416,-1000.0,9.899e-05,2]
[356327112,1742285433426,-2747.45,9.9e-05,2]
[356327114,1742285433436,-701.7514,9.9e-05,2]
[356327116,1742285433446,-150.99,9.9e-05,2]
[356327118,1742285433456,-1000.0,9.9e-05,2]
[356327120,1742285433467,-497.7794,9.9e-05,2]
[356327122,1742285433477,-1732.6891,9.9e-05,2]
[356327124,1742285433487,-677.7262,9.9e-05,2]
[356327126,1742285433498,-272.3735,9.9e-05,2]
[356327129,1742285433508,-499.99,9.9e-05,2]
[356327130,1742285433518,-847.4047,9.9e-05,2]
[356327132,1742285433528,-150.0,9.905e-05,2]
[356327135,1742285433538,-150.0,9.905e-05,2]
[356327136,1742285433548,-150.0,9.908e-05,2]
[356327138,1742285433558,-150.0,9.908e-05,2]
[356327140,1742285433568,-150.0,9.916e-05,2]
[356327142,1742285433577,-150.0,9.919e-05,2]
[356327144,1742285433587,-150.0,9.92e-05,2]
[356327146,1742285433598,-150.0,9.923e-05,2]
[356327148,1742285433608,-150.0,9.923e-05,2]
[356327150,1742285433618,-150.0,9.924e-05,2]
[356327152,1742285433628,-150.0,9.926e-05,2]
[356327154,1742285433638,-150.0,9.933e-05,2]
[356327156,1742285433648,-150.0,9.934e-05,2]
[356327157,1742285433658,-1280.0,9.936e-05,2]
[356327159,1742285433669,-150.0,9.937e-05,2]
[356327161,1742285433679,-150.0,9.949e-05,2]
[356327163,1742285433689,-150.0,9.95e-05,2]
[356327165,1742285433700,-1000.0,9.96e-05,2]
[356327167,1742285433710,-150.0,9.965e-05,2]
[356327169,1742285433725,-150.0,9.965e-05,2]
[356327171,1742285433735,-150.0,9.967e-05,2]
[356327173,1742285433745,-150.0,9.97e-05,2]
[356327175,1742285433755,-1507.53410424,9.97e-05,2]
[356327177,1742285433766,-2771.0,9.973e-05,2]
[356327179,1742285433776,-30046.0,9.973e-05,2]
[356327181,1742285433786,-52702.0,9.973e-05,2]